bitfinex/quotes_SOLUSD_20250403
["timestamp","ask_amount","ask_price","bid_price","bid_amount"]
[1743664261795,99.97593275,118.52,118.51,0.063]
[1743664262101,1.65186157,118.51,118.5,0.063]
[1743664262279,40.53436075,118.51,118.5,0.063]
[1743664262698,141.56833275,118.51,118.5,0.063]
[1743664262998,277.53590136,118.51,118.49,0.063]
[1743664263196,39.02466075,118.5,118.49,0.063]
[1743664263505,47.46346075,118.5,118.49,0.063]
[1743664263882,26.0,118.47,118.46,0.063]
[1743664264081,45.44124959,118.47,118.46,0.063]
[1743664264689,64.51738316,118.47,118.46,0.063]
[1743664265390,19.07613357,118.45,118.41,0.063]
[1743664265605,26.0,118.42,118.41,0.063]
[1743664265781,19.44124959,118.42,118.41,0.063]
[1743664266111,19.07613357,118.42,118.41,0.063]
[1743664269008,46.96188316,118.42,118.41,0.063]
[1743664269306,82.24216157,118.4,118.39,0.063]
[1743664269501,101.68341116,118.4,118.39,0.063]
[1743664269885,120.61738316,118.4,118.39,0.063]
[1743664272603,19.58341116,118.4,118.39,0.063]
[1743664272807,0.14216157,118.4,118.39,0.063]
[1743664275722,19.58341116,118.4,118.39,0.063]
[1743664275919,19.07613357,118.4,118.39,0.063]
[1743664276208,38.51738316,118.4,118.39,0.063]
[1743664277122,46.96328316,118.4,118.39,0.063]
[1743664279220,0.14216157,118.37,118.33,49.01874959]
[1743664279420,82.037,118.36,118.33,49.01874959]
[1743664280196,82.037,118.36,118.34,19.44124959]
[1743664280602,82.037,118.39,118.35,19.44124959]
[1743664280792,82.037,118.39,118.33,29.5775]
[1743664281007,19.44124959,118.38,118.33,29.5775]
[1743664281190,19.44124959,118.38,118.35,8.4495]
[1743664281391,82.17916157,118.37,118.35,8.4495]
[1743664282593,19.44124959,118.36,118.33,8.4509]
[1743664284497,0.14216157,118.35,118.33,8.4509]
[1743664284703,19.58341116,118.35,118.33,8.4509]
[1743664285005,67.63378859,118.34,118.33,8.4509]
[1743664285315,67.77595016,118.34,118.33,8.4509]
[1743664285508,19.44124959,118.36,118.33,8.4509]
[1743664285694,0.14216157,118.36,118.33,8.4509]
[1743664285893,0.14216157,118.36,118.33,29.5782]
[1743664287316,101.54124959,118.38,118.33,49.01944959]
[1743664287519,82.1,118.37,118.34,19.44124959]
[1743664287911,82.1,118.37,118.35,8.4495]
[1743664289101,82.1,118.37,118.35,27.89074959]
[1743664291418,82.1,118.36,118.35,8.4495]
[1743664291914,82.24216157,118.36,118.34,8.4499]
[1743664292517,82.1,118.36,118.33,29.6412]
[1743664292725,101.54124959,118.36,118.33,29.6412]
[1743664292911,101.54124959,118.36,118.33,8.5139]
[1743664293316,82.24216157,118.35,118.33,8.5139]
[1743664293639,82.24216157,118.34,118.33,0.063]
[1743664293824,45.58341116,118.34,118.33,0.063]
[1743664294003,64.51738316,118.34,118.33,0.063]
[1743664294525,64.58495177,118.34,118.33,0.063]
[1743664295120,45.58341116,118.34,118.33,0.063]
[1743664295638,26.14216157,118.34,118.33,0.063]
[1743664295835,19.58341116,118.34,118.33,0.063]
[1743664296007,26.14216157,118.34,118.33,0.063]
[1743664298124,45.58341116,118.34,118.33,0.063]
[1743664299032,64.51738316,118.34,118.33,0.063]
[1743664299325,45.07613357,118.34,118.33,0.063]
[1743664299529,26.14216157,118.34,118.33,0.063]
[1743664299910,45.58341116,118.34,118.33,0.063]
[1743664302643,26.0,118.34,118.33,0.063]
[1743664303548,26.14216157,118.34,118.33,0.063]
[1743664303716,45.58341116,118.34,118.33,0.063]
[1743664304622,72.96758316,118.34,118.33,0.063]
[1743664305851,64.51738316,118.34,118.33,0.063]
[1743664306034,26.14216157,118.34,118.33,0.063]
[1743664306823,45.58341116,118.34,118.33,0.063]
[1743664307738,64.51738316,118.34,118.33,0.063]
[1743664313651,45.58341116,118.34,118.33,0.063]
[1743664314023,26.14216157,118.34,118.33,0.063]
[1743664314340,45.58341116,118.34,118.33,0.063]
[1743664315532,26.14216157,118.34,118.33,0.063]
[1743664316616,26.0,118.34,118.33,0.063]
[1743664316835,0.14216157,118.35,118.33,0.063]
[1743664317431,155.34124959,118.36,118.33,0.063]
[1743664318537,0.14216157,118.34,118.33,0.063]
[1743664319123,155.34124959,118.36,118.33,0.063]
[1743664319330,135.9,118.36,118.33,0.063]
[1743664320027,155.34124959,118.36,118.33,0.063]
[1743664320940,135.9,118.36,118.33,0.063]
[1743664321462,0.14216157,118.35,118.33,0.063]
[1743664322727,135.9,118.36,118.33,0.063]
[1743664323228,82.1,118.35,118.33,0.063]
[1743664325356,0.14216157,118.34,118.33,0.063]
[1743664325931,82.1,118.35,118.33,0.063]
[1743664326642,82.13,118.37,118.33,19.50424959]
[1743664326848,82.13,118.37,118.36,19.44124959]
[1743664327038,0.03,118.37,118.36,25.66094959]
[1743664328433,0.03,118.41,118.36,25.66094959]
[1743664328654,0.03,118.41,118.39,19.44124959]
[1743664329432,0.03,118.41,118.37,7.94]
[1743664329433,0.17216157,118.41,118.37,7.94]
[1743664329638,0.17216157,118.41,118.38,19.44124959]
[1743664330034,0.17216157,118.41,118.37,27.38124959]
[1743664330450,0.17216157,118.41,118.38,19.44124959]
[1743664331449,0.03,118.41,118.39,19.44124959]
[1743664331769,0.03,118.41,118.38,19.44124959]
[1743664332356,0.03,118.41,118.39,19.44124959]
[1743664333054,0.03,118.41,118.38,19.44124959]
[1743664333944,0.03,118.41,118.37,27.38124959]
[1743664334148,0.17216157,118.41,118.37,27.38124959]
[1743664336374,0.17216157,118.41,118.37,7.94]
[1743664336545,19.61341116,118.41,118.36,6.2197]
[1743664336747,82.1,118.4,118.36,25.66094959]
[1743664337343,82.1,118.4,118.38,19.44124959]
[1743664337675,82.1,118.4,118.39,19.44124959]
[1743664337970,0.03,118.41,118.39,19.44124959]
[1743664340169,0.03,118.41,118.4,19.44124959]
[1743664340567,0.03,118.41,118.4,25.47324959]
[1743664340861,0.03,118.41,118.4,33.91914959]
[1743664341065,0.03,118.41,118.4,14.4779]
[1743664341258,0.03,118.41,118.4,33.91914959]
[1743664342355,0.03,118.41,118.39,8.4462]
[1743664342753,0.03,118.41,118.38,49.00584959]
[1743664343947,0.03,118.41,118.4,19.44124959]
[1743664344764,0.03,118.41,118.4,8.4459]
[1743664346053,0.03,118.41,118.4,27.88714959]
[1743664347860,0.03,118.41,118.4,8.4459]
[1743664348670,0.03,118.41,118.4,27.88714959]
[1743664348859,0.03,118.41,118.4,33.96154959]
[1743664349361,82.1,118.45,118.43,19.44124959]
[1743664349755,82.1,118.45,118.4,54.569072]
[1743664349949,82.1,118.45,118.43,19.44124959]
[1743664350670,82.1,118.45,118.42,19.44124959]
[1743664350866,82.1,118.45,118.43,8.4438]
[1743664351969,82.1,118.45,118.43,27.88504959]
[1743664352877,82.1,118.45,118.43,8.4438]
[1743664354174,0.14216157,118.44,118.4,25.51564959]
[1743664354349,82.1,118.43,118.41,8.4452]
[1743664360383,82.1,118.43,118.41,8.5082]
[1743664360961,82.1,118.43,118.42,19.44124959]
[1743664363083,82.1,118.43,118.42,27.88574959]
[1743664364156,0.03,118.45,118.42,48.99694959]
[1743664364380,0.03,118.45,118.43,19.44124959]
[1743664365380,0.03,118.45,118.44,8.443]
[1743664365592,0.03,118.45,118.44,27.88424959]
[1743664367173,0.03,118.45,118.43,8.4435]
[1743664368585,0.03,118.45,118.42,27.88534959]
[1743664368960,0.03,118.45,118.42,8.4441]
[1743664369167,0.03,118.45,118.41,0.063]
[1743664369168,19.58341116,118.43,118.41,0.063]
[1743664369476,19.58341116,118.42,118.41,0.063]
[1743664370569,28.02791116,118.42,118.41,0.063]
[1743664370890,54.99918316,118.42,118.41,0.063]
[1743664371881,100.28918316,118.42,118.41,0.063]
[1743664372391,45.58341116,118.38,118.37,0.063]
[1743664372581,64.51738316,118.38,118.37,0.063]
[1743664374274,26.14216157,118.38,118.37,0.063]
[1743664381172,54.03071116,118.38,118.37,0.063]
[1743664381370,45.58341116,118.38,118.37,0.063]
[1743664382092,26.14216157,118.38,118.37,0.063]
[1743664384376,54.03071116,118.38,118.37,0.063]
[1743664387617,45.58341116,118.38,118.37,0.063]
[1743664387909,26.14216157,118.38,118.37,0.063]
[1743664388282,0.14216157,118.38,118.37,0.063]
[1743664389413,18.933972,118.4,118.37,0.063]
[1743664389414,0.03,118.41,118.37,19.50424959]
[1743664389582,0.03,118.41,118.38,19.44124959]
[1743664389776,0.03,118.41,118.37,26.09214959]
[1743664390017,38.26306002,118.41,118.37,6.6509]
[1743664391410,38.26306002,118.41,118.38,8.4473]
[1743664391779,0.03,118.41,118.39,19.44124959]
[1743664392285,0.03,118.41,118.4,19.44124959]
[1743664393808,0.03,118.41,118.4,27.88714959]
[1743664395995,82.1,118.43,118.4,49.00194959]
[1743664396309,82.1,118.43,118.42,19.44124959]
[1743664399407,82.1,118.43,118.41,14.6384]
[1743664400716,82.24216157,118.42,118.38,7.9135]
[1743664400915,101.68341116,118.42,118.38,16.3605]
[1743664401413,82.24216157,118.42,118.38,35.80174959]
[1743664402721,82.24216157,118.42,118.39,19.44124959]
[1743664402915,82.1,118.42,118.39,19.44124959]
[1743664403122,218.03,118.45,118.41,19.44124959]
[1743664403912,0.14216157,118.44,118.39,7.76]
[1743664404213,0.14216157,118.44,118.4,19.44124959]
[1743664404412,218.03,118.45,118.42,19.44124959]
[1743664404617,218.03,118.45,118.44,8.443]
[1743664404807,82.13,118.45,118.44,8.443]
[1743664406625,82.13,118.45,118.44,27.88424959]
[1743664406810,82.13,118.45,118.44,8.443]
[1743664407702,82.13,118.45,118.44,27.88424959]
[1743664408310,82.13,118.45,118.44,8.443]
[1743664408510,82.13,118.45,118.43,8.4434]
[1743664408741,82.13,118.45,118.43,27.88464959]
[1743664409025,0.03,118.45,118.44,19.44124959]
[1743664410203,0.03,118.45,118.44,27.88424959]
[1743664411411,0.03,118.45,118.44,8.443]
[1743664411611,0.03,118.45,118.44,27.88424959]
[1743664414432,0.03,118.45,118.43,35.66444959]
[1743664414624,0.03,118.45,118.43,8.4432]
[1743664414929,0.03,118.45,118.43,27.88444959]
[1743664420635,0.03,118.45,118.44,19.44124959]
[1743664421324,0.0001,118.45,118.44,64.34197118]
[1743664421724,0.0001,118.45,118.44,87.6804986]
[1743664422436,0.0001,118.45,118.44,37.90367732]
[1743664422611,0.0001,118.45,118.44,46.34667732]
[1743664423237,0.0001,118.45,118.44,96.1234986]
[1743664423750,0.0001,118.45,118.44,72.79073718]
[1743664424439,0.0001,118.45,118.44,53.34660459]
[1743664424833,0.0001,118.45,118.44,34.41263259]
[1743664429362,0.0001,118.45,118.44,14.9685]
[1743664429639,0.0001,118.45,118.44,34.41263259]
[1743664430249,0.0001,118.45,118.44,27.88713259]
[1743664430740,0.0001,118.45,118.43,8.4434]
[1743664432231,0.0001,118.45,118.43,27.88753259]
[1743664434657,0.0001,118.45,118.44,19.44413259]
[1743664434845,0.0001,118.45,118.44,27.88713259]
[1743664435142,0.0001,118.45,118.44,8.443]
[1743664437341,0.0001,118.45,118.44,27.88713259]
[1743664438128,0.0001,118.45,118.44,55.31558832]
[1743664438333,0.0001,118.45,118.44,81.52093718]
[1743664438947,0.03,118.49,118.46,0.28432314]
[1743664439133,0.03,118.49,118.48,19.44413259]
[1743664439638,0.03,118.49,118.48,8.4402]
[1743664440225,0.03,118.49,118.47,27.88463259]
[1743664440554,0.03,118.49,118.47,8.4405]
[1743664441748,0.03,118.49,118.42,21.1106]
[1743664442055,101.68629416,118.48,118.43,27.88793259]
[1743664443246,110.12669416,118.48,118.43,27.88793259]
[1743664443548,0.14216157,118.46,118.43,27.88793259]
[1743664443739,82.1,118.45,118.42,8.4441]
[1743664444647,82.1,118.44,118.42,8.4441]
[1743664444841,82.1,118.47,118.43,19.44413259]
[1743664445037,0.14216157,118.46,118.41,0.063]
[1743664445360,82.1,118.45,118.42,8.4445]
[1743664445933,101.54413259,118.45,118.42,8.4445]
[1743664446249,101.54413259,118.45,118.41,8.5082]
[1743664448344,0.14216157,118.44,118.41,8.5082]
[1743664448549,1.71186157,118.44,118.41,8.5082]
[1743664448934,21.15599416,118.44,118.41,8.5082]
[1743664449240,101.54413259,118.43,118.41,0.063]
[1743664449449,82.1,118.42,118.41,0.063]
[1743664449659,19.58629416,118.42,118.41,0.063]
[1743664449858,0.14216157,118.42,118.41,0.063]
[1743664451237,0.28432314,118.42,118.41,0.063]
[1743664451456,38.52026616,118.42,118.41,0.063]
[1743664452959,0.14216157,118.42,118.41,0.063]
[1743664454844,19.58629416,118.42,118.41,0.063]
[1743664455548,28.03079416,118.42,118.41,0.063]
[1743664455749,21.05160855,118.42,118.41,0.063]
[1743664457956,39.98558055,118.42,118.41,0.063]
[1743664460286,44.25313574,118.42,118.41,0.063]
[1743664460765,16.38891776,118.45,118.41,0.063]
[1743664460947,0.14216157,118.45,118.41,12.52794698]
[1743664461346,12.60710855,118.45,118.41,0.063]
[1743664461760,19.6069746,118.45,118.41,0.063]
[1743664461966,8.58466157,118.45,118.41,8.5082]
[1743664462153,28.0494746,118.45,118.41,8.5082]
[1743664463969,82.1,118.43,118.41,8.5082]
[1743664467177,82.1,118.43,118.41,27.97301303]
[1743664467555,82.1,118.43,118.41,8.5082]
[1743664467754,82.1,118.43,118.41,0.063]
[1743664467957,0.14216157,118.42,118.41,0.063]
[1743664470583,0.14216157,118.44,118.41,19.52781303]
[1743664470760,0.17216157,118.45,118.41,19.52781303]
[1743664471458,19.6369746,118.45,118.41,0.063]
[1743664471869,26.14216157,118.42,118.41,0.063]
[1743664475372,26.0,118.42,118.41,0.063]
[1743664476166,0.14216157,118.44,118.41,0.063]
[1743664477081,0.14216157,118.44,118.41,8.5082]
[1743664478285,26.0,118.43,118.41,27.97301303]
[1743664478487,26.0,118.43,118.41,8.5082]
[1743664481584,108.1,118.43,118.41,8.5082]
[1743664481783,82.1,118.43,118.41,8.5082]
[1743664485274,82.1,118.43,118.42,12.45881205]
[1743664485797,0.03,118.45,118.42,20.90331205]
[1743664487501,0.03,118.45,118.43,12.45881205]
[1743664487877,0.03,118.45,118.44,8.443]
[1743664488988,0.03,118.45,118.43,20.90221205]
[1743664489185,0.03,118.45,118.44,12.45881205]
[1743664489895,0.03,118.45,118.44,20.90181205]
[1743664500305,0.03,118.45,118.44,8.443]
[1743664500501,0.03,118.45,118.43,20.90211205]
[1743664500686,0.03,118.45,118.43,8.4433]
[1743664501483,0.03,118.45,118.42,8.4441]
[1743664501689,0.17216157,118.45,118.41,27.48561205]
[1743664501911,82.1,118.44,118.41,27.48561205]
[1743664503303,82.1,118.44,118.42,12.45881205]
[1743664503506,0.03,118.45,118.43,12.45881205]
[1743664503686,0.03,118.45,118.44,12.45881205]
[1743664505408,0.03,118.45,118.44,20.90181205]
[1743664505591,0.03,118.45,118.44,8.443]
[1743664508005,0.03,118.45,118.42,20.90301205]
[1743664508510,0.03,118.45,118.42,8.4442]
[1743664509103,0.03,118.45,118.41,27.48521205]
[1743664510094,0.03,118.45,118.44,12.45881205]
[1743664510498,0.03,118.45,118.42,12.45881205]
[1743664511512,0.03,118.45,118.43,12.45881205]
[1743664512096,0.03,118.45,118.44,8.443]
[1743664513190,0.03,118.45,118.43,8.4438]
[1743664513394,12.60097362,118.44,118.41,0.063]
[1743664513715,94.70097362,118.44,118.41,0.063]
[1743664514014,94.70097362,118.44,118.42,0.063]
[1743664515792,82.24216157,118.44,118.42,0.063]
[1743664517904,82.1,118.44,118.42,0.063]
[1743664518533,0.03,118.45,118.43,25.53309632]
[1743664518713,0.03,118.45,118.44,19.46769632]
[1743664519025,0.03,118.45,118.44,27.08769632]
[1743664519614,0.03,118.45,118.44,35.53069632]
[1743664521302,0.03,118.45,118.44,54.99839264]
[1743664521496,0.03,118.49,118.44,76.39041578]
[1743664521699,0.03,118.49,118.48,8.4402]
[1743664524224,0.03,118.49,118.48,27.90789632]
[1743664524441,0.03,118.49,118.48,35.47749632]
[1743664524731,0.03,118.49,118.48,43.09749632]
[1743664525933,0.03,118.49,118.48,43.38181946]
[1743664526627,0.0001,118.49,118.48,62.03146832]
[1743664530246,0.03,118.52,118.5,0.28432314]
[1743664530456,0.03,118.52,118.51,19.46769632]
[1743664531635,0.03,118.52,118.51,27.90579632]
[1743664536350,0.03,118.53,118.51,27.90579632]
[1743664536546,0.03,118.53,118.52,27.08769632]
[1743664536744,0.0001,118.53,118.52,27.37201946]
[1743664537620,0.0001,118.53,118.52,20.32938932]
[1743664538028,82.13,118.57,118.53,0.28432314]
[1743664538239,0.03,118.57,118.56,12.42506618]
[1743664538436,0.03,118.57,118.56,20.85956618]
[1743664538642,0.03,118.57,118.56,28.45956618]
[1743664539624,0.03,118.57,118.56,35.72560532]
[1743664540839,0.03,118.57,118.56,35.44128218]
[1743664545858,0.03,118.57,118.56,35.72560532]
[1743664548945,0.03,118.57,118.56,55.1323875]
[1743664550345,0.03,118.57,118.56,35.72560532]
[1743664555765,0.03,118.57,118.56,28.12560532]
[1743664555940,0.03,118.57,118.56,35.72560532]
[1743664556262,0.0001,118.57,118.56,55.1323875]
[1743664556563,0.0001,118.57,118.56,73.78203636]
[1743664557945,0.0001,118.57,118.56,54.37525418]
[1743664558351,0.0001,118.57,118.56,73.78203636]
[1743664559661,0.0001,118.57,118.56,97.0526848]
[1743664560255,0.0001,118.57,118.56,78.1187128]
[1743664560559,0.0001,118.57,118.56,28.45134256]
[1743664561670,0.0001,118.57,118.56,28.7356657]
[1743664562465,0.0001,118.57,118.56,47.38531456]
[1743664562773,0.0001,118.57,118.56,8.4345]
[1743664563067,12.41694256,118.57,118.54,337.2556]
[1743664563640,0.0001,118.57,118.54,337.2556]
[1743664565069,0.0001,118.57,118.55,12.41684256]
[1743664565276,0.0001,118.57,118.56,12.41684256]
[1743664566562,0.0001,118.57,118.56,20.85134256]
[1743664566766,0.0001,118.57,118.56,8.4345]
[1743664566963,0.0001,118.57,118.55,8.4348]
[1743664567744,0.0001,118.57,118.56,12.41684256]
[1743664568767,0.0001,118.57,118.56,20.85134256]
[1743664569663,0.0001,118.57,118.56,8.4345]
[1743664570768,0.0001,118.57,118.55,8.4352]
[1743664570960,0.0001,118.57,118.54,337.2558]
[1743664570961,12.41694256,118.57,118.54,337.2558]
[1743664571669,13.94784256,118.55,118.53,0.063]
[1743664571869,12.41684256,118.54,118.53,0.063]
[1743664572163,1.531,118.55,118.53,0.063]
[1743664572473,13.94784256,118.55,118.53,8.4996]
[1743664572663,13.94784256,118.55,118.53,0.063]
[1743664573669,1.531,118.55,118.54,0.063]
[1743664574859,21.10275108,118.55,118.54,0.063]
[1743664575769,29.53795108,118.55,118.54,0.063]
[1743664576772,21.10275108,118.55,118.54,0.063]
[1743664577866,1.67316157,118.55,118.54,0.063]
[1743664578054,47.10275108,118.55,118.54,0.063]
[1743664578366,74.47192308,118.55,118.54,0.063]
[1743664578884,66.03672308,118.55,118.54,0.063]
[1743664580151,47.10275108,118.55,118.54,0.063]
[1743664580355,27.67316157,118.55,118.54,0.063]
[1743664580563,135.9,118.56,118.54,0.063]
[1743664585270,0.0001,118.57,118.54,19.49258951]
[1743664585771,0.0001,118.57,118.56,19.42958951]
[1743664586157,0.0001,118.57,118.56,8.4345]
[1743664586964,0.0001,118.57,118.56,27.86408951]
[1743664592173,0.0001,118.57,118.56,8.4345]
[1743664592479,0.0001,118.57,118.56,27.86408951]
[1743664596890,0.0001,118.57,118.56,20.8556474]
[1743664597184,0.0001,118.57,118.56,20.9186474]
[1743664599086,0.0001,118.57,118.56,89.537209]
[1743664600189,0.03,118.61,118.56,531.71257057]
[1743664600190,0.0001,118.61,118.56,531.71257057]
[1743664600389,0.0001,118.61,118.59,12.4211474]
[1743664600593,0.0001,118.61,118.58,12.4211474]
[1743664601186,0.0001,118.61,118.59,12.4211474]
[1743664602078,0.0001,118.61,118.58,29.5159]
[1743664602389,12.4212474,118.61,118.58,29.5159]
[1743664602594,0.14226157,118.61,118.58,29.5159]
[1743664604090,12.56340897,118.61,118.58,8.4331]
[1743664604471,0.14226157,118.61,118.58,8.4331]
[1743664605786,0.0001,118.61,118.58,29.5159]
[1743664606582,12.56340897,118.61,118.58,29.5159]
[1743664606783,0.14226157,118.61,118.58,29.5159]
[1743664607379,0.14226157,118.61,118.59,12.4211474]
[1743664607380,0.0001,118.61,118.59,12.4211474]
[1743664608596,0.0001,118.61,118.6,8.4317]
[1743664609295,0.0001,118.61,118.6,20.8528474]
[1743664612483,0.0001,118.61,118.6,39.7868194]
[1743664615803,0.0001,118.61,118.6,8.4317]
[1743664616701,0.0001,118.61,118.59,20.8535474]
[1743664617198,0.0001,118.61,118.6,12.4211474]
[1743664617596,0.0001,118.61,118.59,20.8535474]
[1743664618200,0.0001,118.61,118.59,8.4324]
[1743664619897,12.4212474,118.61,118.58,8.4328]
[1743664620306,0.0001,118.61,118.58,8.4328]
[1743664620501,0.0001,118.61,118.56,28.7486]
[1743664620502,82.24216157,118.6,118.56,0.063]
[1743664620701,94.5211474,118.59,118.56,0.063]
[1743664621004,12.4211474,118.57,118.56,0.063]
[1743664621304,12.56330897,118.57,118.56,0.063]
[1743664621506,82.1,118.59,118.56,0.063]
[1743664621799,101.51859602,118.59,118.56,0.063]
[1743664622102,19.41859602,118.58,118.56,0.063]
[1743664622305,101.51859602,118.59,118.56,0.063]
[1743664624092,82.1,118.59,118.56,0.063]
[1743664624285,101.51859602,118.59,118.56,0.063]
[1743664624485,19.41859602,118.57,118.56,0.063]
[1743664624989,19.56075759,118.57,118.56,0.063]
[1743664625189,27.99455759,118.57,118.56,0.063]
[1743664625405,46.92852959,118.57,118.56,0.063]
[1743664627107,48.55762959,118.57,118.56,0.063]
[1743664627686,21.18985759,118.57,118.56,0.063]
[1743664627888,135.9,118.59,118.56,0.063]
[1743664628298,155.31859602,118.59,118.56,0.063]
[1743664629209,19.41859602,118.59,118.56,0.063]
[1743664629603,101.51859602,118.59,118.56,0.063]
[1743664630387,82.1,118.59,118.56,0.063]
[1743664631419,82.1,118.59,118.56,19.48159602]
[1743664631701,82.1,118.59,118.57,19.41859602]
[1743664631914,0.0001,118.61,118.58,19.41859602]
[1743664632231,0.0001,118.61,118.57,19.41859602]
[1743664633092,0.0001,118.61,118.58,8.4331]
[1743664633889,19.41869602,118.61,118.58,8.4331]
[1743664634301,19.56075759,118.6,118.57,8.4334]
[1743664635013,19.56075759,118.6,118.56,8.4975]
[1743664635193,19.56075759,118.6,118.56,29.5838]
[1743664635603,0.14216157,118.6,118.56,49.00239602]
[1743664635801,0.0001,118.61,118.57,19.41859602]
[1743664635996,0.0001,118.61,118.58,19.41859602]
[1743664636401,0.0001,118.61,118.57,19.41859602]
[1743664637012,0.0001,118.61,118.58,8.4331]
[1743664637591,0.0001,118.61,118.58,48.93449602]
[1743664639209,0.0001,118.61,118.58,29.5159]
[1743664639386,45.41859602,118.59,118.56,8.4972]
[1743664639591,19.41859602,118.58,118.56,8.4972]
[1743664640818,19.41859602,118.58,118.56,0.063]
[1743664641108,101.66075759,118.57,118.56,0.063]
[1743664641312,110.09455759,118.57,118.56,0.063]
[1743664641608,129.02852959,118.57,118.56,0.063]
[1743664642595,82.24216157,118.57,118.56,0.063]
[1743664642805,101.66075759,118.57,118.56,0.063]
[1743664643011,110.09455759,118.57,118.56,0.063]
[1743664644715,101.66075759,118.57,118.56,0.063]
[1743664645699,110.09455759,118.57,118.56,0.063]
[1743664645906,27.99455759,118.57,118.56,0.063]
[1743664648116,46.92852959,118.57,118.56,0.063]
[1743664649716,66.34712561,118.57,118.56,0.063]
[1743664649901,91.68712561,118.57,118.54,0.063]
[1743664650104,66.00222959,118.55,118.54,0.063]
[1743664650302,201.90222959,118.55,118.54,0.063]
[1743664650717,0.14216157,118.54,118.53,0.063]
[1743664650993,19.56075759,118.54,118.53,0.063]
[1743664651692,27.99665759,118.54,118.53,0.063]
[1743664653218,46.93062959,118.54,118.53,0.063]
[1743664657624,182.83062959,118.54,118.53,0.063]
[1743664658925,186.94833059,118.54,118.53,0.063]
[1743664661107,206.94833059,118.54,118.53,0.063]
[1743664661316,45.41859602,118.5,118.49,0.063]
[1743664661823,38.44864451,118.5,118.49,0.063]
[1743664662409,38.59080608,118.5,118.49,0.063]
[1743664664835,47.02960608,118.5,118.49,0.063]
[1743664666033,115.75815612,118.5,118.49,0.063]
[1743664666228,117.33535612,118.5,118.46,0.063]
[1743664666432,57.52477808,118.47,118.46,0.063]
[1743664668232,65.96567808,118.47,118.46,0.063]
[1743664669744,72.98389541,118.47,118.46,0.063]
[1743664670748,80.58389541,118.47,118.46,0.063]
[1743664670946,82.24216157,118.45,118.44,0.063]
[1743664671151,26.14216157,118.43,118.42,0.063]
[1743664671449,19.60902341,118.43,118.42,0.063]
[1743664671820,18.933972,118.41,118.4,0.063]
[1743664672020,38.54299541,118.41,118.4,0.063]
[1743664672920,46.98819541,118.41,118.4,0.063]
[1743664673530,45.46686184,118.38,118.37,0.063]
[1743664674444,53.91416184,118.38,118.37,0.063]
[1743664675143,45.46686184,118.38,118.37,0.063]
[1743664675926,53.91416184,118.38,118.37,0.063]
[1743664678542,92.45715725,118.38,118.37,0.063]
[1743664680340,0.14216157,118.37,118.33,0.063]
[1743664680543,45.60902341,118.34,118.33,0.063]
[1743664680943,26.14216157,118.34,118.33,0.063]
[1743664681249,45.60902341,118.34,118.33,0.063]
[1743664682750,54.05922341,118.34,118.33,0.063]
[1743664683347,0.14216157,118.36,118.33,0.063]
[1743664683546,19.60902341,118.36,118.33,0.063]
[1743664683739,19.46686184,118.35,118.33,0.063]
[1743664684047,82.1,118.36,118.33,0.063]
[1743664684853,0.14216157,118.35,118.33,0.063]
[1743664685044,19.60902341,118.35,118.33,0.063]
[1743664685428,82.1,118.36,118.33,19.52986184]
[1743664685653,82.1,118.39,118.34,8.0609]
[1743664685864,19.60902341,118.38,118.34,8.0609]
[1743664686027,19.46686184,118.37,118.34,8.0609]
[1743664686231,101.56686184,118.37,118.34,8.0609]